bitfinex-derivatives/quotes_ETHF0:USTF0_20250708
["timestamp","ask_amount","ask_price","bid_price","bid_amount"]
[1751983506484,2.73828023,2586.0,2585.9,8.3014059]
[1751983506686,3.40468023,2586.0,2585.9,7.3172059]
[1751983507090,2.63139023,2586.0,2585.9,7.3172059]
[1751983507291,1.96499023,2586.0,2585.9,7.3172059]
[1751983507593,2.73828023,2586.0,2585.9,7.3172059]
[1751983507793,1.96499023,2586.0,2585.9,7.3172059]
[1751983507993,3.40468023,2586.0,2585.9,7.3172059]
[1751983508392,2.63139023,2586.0,2585.9,7.3172059]
[1751983508793,1.96499023,2586.0,2585.9,7.3172059]
[1751983508994,1.96499023,2586.0,2585.9,8.3014059]
[1751983510194,3.40468023,2586.0,2585.9,4.63702]
[1751983510991,1.96499023,2586.0,2585.9,4.63702]
[1751983511297,1.96499023,2586.0,2585.9,8.3014059]
[1751983512191,3.40468023,2586.0,2585.9,3.98112]
[1751983512398,1.96499023,2586.0,2585.9,3.98112]
[1751983512592,1.96499023,2586.0,2585.9,7.3172059]
[1751983512891,1.96499023,2586.0,2585.9,8.3014059]
[1751983514091,1.8405,2586.7,2586.5,0.77311]
[1751983514295,0.6664,2586.6,2586.1,3.98105]
[1751983514497,0.77326,2586.2,2586.1,3.98105]
[1751983514897,4.39126,2586.2,2586.1,3.98105]
[1751983515092,4.39126,2586.2,2586.1,4.63695]
[1751983515495,4.39126,2586.2,2586.1,3.98105]
[1751983515796,0.77332,2586.0,2585.9,0.77329]
[1751983516191,1.43972,2586.0,2585.9,1.42919]
[1751983517389,1.43972,2586.0,2585.9,0.77329]
[1751983517691,0.77332,2585.9,2585.8,3.98114]
[1751983517899,0.6664,2585.9,2585.8,4.63704]
[1751983518597,1.7562,2586.2,2585.9,0.77332]
[1751983518897,0.77309,2586.8,2586.7,0.77306]
[1751983519199,2.4229,2586.8,2586.7,0.77306]
[1751983519394,1.79405,2586.9,2586.8,0.77305]
[1751983519395,1.021,2586.9,2586.8,0.77305]
[1751983519596,3.4439,2586.9,2586.8,0.77305]
[1751983519995,0.6664,2586.9,2586.8,0.77305]
[1751983520799,1.43942,2586.9,2586.8,0.77305]
[1751983520997,0.6664,2586.9,2586.8,0.77305]
[1751983522302,2.52946,2587.1,2587.0,0.77299]
[1751983522502,3.18586,2587.1,2587.0,0.77299]
[1751983522699,2.52946,2587.1,2587.0,0.77299]
[1751983522903,3.18586,2587.1,2587.0,0.77299]
[1751983523102,3.18586,2587.1,2587.0,1.46399]
[1751983523302,4.19718,2587.1,2587.0,1.46399]
[1751983523503,3.4242,2587.1,2587.0,0.77299]
[1751983523703,4.19716,2587.1,2587.0,0.77299]
[1751983523906,2.52946,2587.1,2587.0,0.77299]
[1751983524205,3.4242,2587.1,2586.7,3.2078]
[1751983524402,4.6128259,2586.8,2586.4,3.2078]
[1751983524608,1.42954,2586.5,2586.4,3.98095]
[1751983524802,1.42954,2586.5,2586.4,0.77315]
[1751983525008,0.6564,2586.5,2586.4,0.77315]
[1751983525207,0.6564,2586.5,2586.4,1.46415]
[1751983525504,1.8419,2586.7,2586.6,0.77311]
[1751983525705,3.27138,2586.7,2586.6,0.77311]
[1751983525904,2.4983,2586.7,2586.1,5.14094]
[1751983526108,2.6801859,2586.4,2586.1,3.2078]
[1751983526307,4.28133401,2586.3,2586.2,0.77321]
[1751983526508,6.16043401,2586.3,2586.2,0.77321]
[1751983528402,6.16043401,2586.3,2585.9,1.93325]
[1751983528403,0.77332,2585.9,2585.8,3.2078]
[1751983528607,0.77338,2585.7,2585.3,0.77347]
[1751983528909,6.34755833,2585.7,2585.2,0.77352]
[1751983529110,0.7735,2585.3,2585.2,0.77352]
[1751983529513,0.7735,2585.3,2585.1,3.98134]
[1751983529712,0.7735,2585.3,2585.2,0.691]
[1751983529912,0.7735,2585.3,2585.2,1.46453]
[1751983530214,0.7735,2585.3,2585.2,0.691]
[1751983530916,1.4299,2585.3,2585.2,0.691]
[1751983531615,0.77353,2585.2,2585.1,3.2078]
[1751983531819,1.42993,2585.2,2585.1,0.691]
[1751983532018,1.42993,2585.2,2585.1,1.46455]
[1751983532218,0.6564,2585.2,2585.1,0.77355]
[1751983532417,0.77352,2585.3,2585.0,3.2078]
[1751983532418,2.51809,2585.4,2585.2,0.77351]
[1751983532619,0.7735,2585.3,2585.2,0.77351]
[1751983532819,1.4299,2585.3,2585.2,1.46451]
[1751983533016,0.77356,2585.1,2584.9,1.8744]
[1751983533214,1.42999,2585.0,2584.9,1.46459]
[1751983533415,0.6564,2585.0,2584.9,1.46459]
[1751983533610,3.26049,2585.0,2584.9,1.46459]
[1751983534115,2.4869,2585.0,2584.9,1.46459]
[1751983534314,0.6564,2585.0,2584.9,1.46459]
[1751983534520,0.77352,2585.3,2585.2,0.77351]
[1751983534720,0.77355,2585.2,2585.1,0.77354]
[1751983535424,0.77359,2585.1,2585.0,0.77357]
[1751983535913,0.77359,2585.1,2585.0,1.46457]
[1751983536115,2.65524,2585.2,2585.1,0.77356]
[1751983536518,0.6564,2585.3,2585.2,0.77353]
[1751983536720,0.6564,2585.3,2585.2,0.691]
[1751983536918,1.67003851,2585.5,2585.4,0.77347]
[1751983537119,2.32638215,2585.5,2585.4,0.77347]
[1751983538119,3.09982215,2585.5,2585.4,0.77347]
[1751983538320,2.32638215,2585.5,2585.4,0.77347]
[1751983538623,3.09982215,2585.5,2585.4,1.46447]
[1751983539116,3.09982215,2585.5,2585.4,0.77347]
[1751983539316,4.11112215,2585.5,2585.4,0.77347]
[1751983539518,5.86292215,2585.5,2585.4,1.46447]
[1751983539918,0.77353,2585.2,2585.1,3.2078]
[1751983540214,1.42993,2585.2,2585.1,0.77355]
[1751983540622,1.42993,2585.2,2585.1,1.46455]
[1751983540822,1.6677,2585.2,2584.9,1.7849]
[1751983541018,1.78489,2585.1,2585.0,0.77357]
[1751983541324,0.77362,2585.0,2584.9,0.7736]
[1751983541526,0.77362,2584.9,2584.8,0.22710366]
[1751983541825,4.21242,2584.9,2584.8,1.00075366]
[1751983542425,1.7711,2584.9,2584.8,1.00075366]
[1751983542723,2.4275,2584.9,2584.8,1.69175366]
[1751983543128,2.4275,2584.9,2584.8,1.00075366]
[1751983543418,2.4275,2584.9,2584.8,1.69175366]
[1751983543620,8.20112,2584.9,2584.8,3.66e-06]
[1751983543816,1.93431,2584.6,2583.9,3.2078]
[1751983544017,3.2078,2584.4,2584.0,1.93473]
[1751983544219,3.2078,2585.3,2585.2,0.77353]
[1751983544520,2.32343491,2585.3,2585.2,0.77353]
[1751983544722,0.6564,2585.3,2585.2,0.77353]
[1751983545620,1.0113,2585.6,2585.5,0.77344]
[1751983545820,5.30379687,2585.6,2585.5,0.77344]
[1751983546020,0.77348,2585.4,2585.3,0.77348]
[1751983546220,0.77346,2585.5,2585.4,0.77347]
[1751983546420,1.66629891,2585.5,2585.4,0.77347]
[1751983546616,65.4789,2586.0,2585.4,0.77347]
[1751983546829,1.66619366,2585.9,2585.8,0.77335]
[1751983547321,1.66619366,2585.9,2585.8,1.46435]
[1751983547520,2.32259366,2585.9,2585.8,1.46435]
[1751983547726,1.66619366,2585.9,2585.8,1.46435]
[1751983547922,2.32259366,2585.9,2585.8,1.46435]
[1751983548123,2.32259366,2585.9,2585.8,0.77335]
[1751983548124,3.09591366,2585.9,2585.8,0.77335]
[1751983548424,2.32259366,2585.9,2585.8,1.46435]
[1751983548726,0.6564,2585.9,2585.8,1.46435]
[1751983549419,0.6564,2585.9,2585.8,0.77335]
[1751983549616,0.6564,2585.9,2585.8,1.46435]
[1751983550016,1.6677,2585.9,2585.8,0.77335]
[1751983550325,1.42974,2585.9,2585.8,0.691]
[1751983550519,1.42974,2585.9,2585.8,0.77335]
[1751983550726,0.77335,2585.8,2585.7,3.98117]
[1751983551028,1.40495,2585.8,2585.7,4.68167]
[1751983551327,0.6316,2585.8,2585.7,4.68167]
[1751983551727,1.40495,2585.8,2585.7,4.68167]
[1751983552126,0.77334,2585.9,2585.8,0.77335]
[1751983552427,0.77347,2585.5,2585.4,0.77345]
[1751983552621,0.77356,2585.1,2585.0,0.77355]
[1751983552925,0.6316,2585.1,2585.0,3.9083]
[1751983553129,1.40516,2585.1,2585.0,4.68189]
[1751983553322,2.47909,2585.4,2585.3,0.7735]
[1751983553621,0.7735,2585.3,2585.2,0.77351]
[1751983553822,3.07680506,2585.3,2585.2,1.47401]
[1751983554026,0.77353,2585.2,2585.1,0.77354]
[1751983554425,3.07474557,2585.2,2585.1,0.77354]
[1751983556426,2.30121557,2585.2,2585.1,0.77354]
[1751983556622,1.66961557,2585.2,2585.1,0.77354]
[1751983556925,0.77356,2585.1,2585.0,3.2078]
[1751983557125,2.44317557,2585.1,2585.0,3.2078]
[1751983557527,2.44317557,2585.1,2585.0,3.9083]
[1751983557723,0.77365,2584.8,2584.7,0.77368]
[1751983558031,0.77368,2584.7,2584.6,3.2078]
[1751983558234,0.77368,2584.7,2584.6,4.68199]
[1751983559226,2.4468302,2584.7,2584.6,4.68199]
[1751983559630,3.0784302,2584.7,2584.6,4.68199]
[1751983560633,2.3047502,2584.7,2584.6,4.68199]
[1751983560933,3.0784302,2584.7,2584.6,4.68199]
[1751983561138,1.6731502,2584.7,2584.6,5.69509]
[1751983561335,1.6731502,2584.7,2584.6,10.69509]
[1751983561534,0.77355,2585.2,2585.1,0.77356]
[1751983561731,3.12436045,2585.2,2585.1,1.47406]
[1751983562128,2.49274045,2585.2,2585.1,0.77356]
[1751983562524,3.12434045,2585.2,2585.1,1.47406]
[1751983562735,3.12434045,2585.2,2584.9,3.98138]
[1751983562736,0.77359,2585.0,2584.9,3.98138]
[1751983562937,1.40519,2585.0,2584.9,4.68188]
[1751983563133,3.12440045,2585.0,2584.9,4.68188]
[1751983563834,2.35081045,2585.0,2584.9,4.68188]
[1751983564136,3.12440045,2585.0,2584.9,4.68188]
[1751983564431,2.35081045,2585.0,2584.9,4.68188]
[1751983565036,12.23915056,2585.6,2585.0,3.86797]
[1751983565037,3.2078,2585.6,2585.0,3.86797]
[1751983565237,1.40501,2585.6,2585.5,1.47394]
[1751983565536,1.40501,2585.6,2585.5,0.77344]
[1751983565731,2.35911,2585.6,2585.5,0.77344]
[1751983566236,0.77347,2585.5,2585.4,0.77345]
[1751983566535,1.93369,2585.4,2584.4,1.0131]
[1751983566837,0.77367,2584.8,2584.7,0.77366]
[1751983567035,5.57417833,2585.0,2584.9,0.7736]
[1751983567036,0.77359,2585.0,2584.9,0.7736]
[1751983567345,3.2078,2585.1,2585.0,0.77359]
[1751983567535,0.77361,2585.0,2584.9,0.7736]
[1751983568339,3.98139,2585.1,2585.0,0.77359]
[1751983568738,3.2078,2585.1,2585.0,0.77359]
[1751983568933,3.98136,2585.1,2585.0,0.77359]
[1751983569133,3.2078,2585.1,2585.0,0.77359]
[1751983569334,2.48798,2585.4,2585.3,0.7735]
[1751983569530,2.48798,2585.4,2585.2,0.7735]
[1751983569531,0.77352,2585.3,2585.2,0.7735]
[1751983569836,0.77359,2585.1,2585.0,0.77358]
[1751983570036,0.77359,2585.1,2585.0,1.47408]
[1751983570238,0.7736,2585.0,2584.9,0.77359]
[1751983570439,3.3755,2585.3,2584.7,5.14199]
[1751983570640,0.77354,2585.2,2585.1,0.77354]
[1751983570938,2.56334,2585.2,2585.1,0.77354]
[1751983571434,2.4214,2585.2,2585.1,1.47404]
[1751983571639,2.488,2585.4,2585.1,0.7005]
[1751983571842,0.77347,2585.4,2585.3,0.7735]
[1751983572037,55.01346,2585.5,2585.4,0.77347]
[1751983572234,55.01346,2585.5,2585.4,0.7005]
[1751983572235,54.24,2585.5,2585.4,0.7005]
[1751983572436,0.77347,2585.4,2585.3,0.77348]
[1751983572841,1.40507,2585.4,2585.3,0.77348]
[1751983573140,1.40507,2585.4,2585.3,1.47398]
[1751983573342,0.77356,2585.2,2585.1,0.77353]
[1751983573539,1.40516,2585.2,2585.1,0.7005]
[1751983573843,0.77359,2585.1,2585.0,0.77356]
[1751983574040,1.40519,2585.1,2585.0,0.77356]
[1751983574236,0.77362,2584.9,2584.8,0.77363]
[1751983574542,0.77362,2585.0,2584.9,0.77359]
[1751983574734,0.77362,2585.0,2584.9,1.47409]
[1751983574940,1.40522,2585.0,2584.9,0.77359]
[1751983575139,0.77362,2584.9,2584.8,0.77363]
[1751983575341,0.77362,2584.9,2584.8,0.77365]
[1751983575636,1.40522,2584.9,2584.8,1.47415]
[1751983575839,1.40522,2584.9,2584.8,0.7005]
[1751983576036,0.77371,2584.6,2584.5,1.8344]
[1751983576239,0.77371,2584.6,2584.5,2.5349]
[1751983576439,0.77371,2584.6,2584.5,0.7005]
[1751983577139,2.47691959,2584.6,2584.5,0.7005]
[1751983577344,2.47691959,2584.6,2584.5,1.47424]
[1751983578639,2.47691959,2584.6,2584.5,0.7005]
[1751983578836,2.47691959,2584.6,2584.5,1.47424]
[1751983579041,2.47691959,2584.6,2584.5,3.27284]
[1751983579242,1.70320959,2584.6,2584.5,3.27284]
[1751983579437,2.47691959,2584.6,2584.5,3.27284]
[1751983580242,1.70320959,2584.6,2584.5,3.27284]
[1751983580739,0.7736,2585.0,2584.9,0.77362]
[1751983580936,3.17590998,2585.0,2584.9,0.77362]
[1751983581145,1.70320998,2585.0,2584.9,0.77362]
[1751983581336,1.70320998,2585.0,2584.9,1.44092]
[1751983581940,2.40230998,2585.0,2584.9,0.77362]
[1751983582143,2.40230998,2585.0,2584.9,1.44092]
[1751983582144,1.70320998,2585.0,2584.9,1.44092]
[1751983582338,2.47679998,2585.0,2584.9,0.77362]
[1751983582542,3.17589998,2585.0,2584.9,0.77362]
[1751983583045,0.77362,2584.9,2584.8,0.77365]
[1751983583242,4.33302998,2584.9,2584.8,0.77365]
[1751983583643,4.33302998,2584.9,2584.8,1.44095]
[1751983584741,4.33302998,2584.9,2584.8,0.6673]
[1751983584941,4.33302998,2584.9,2584.8,1.44095]
[1751983585643,9.33302998,2584.9,2584.8,0.6673]
[1751983586450,5.26910998,2584.9,2584.8,1.44095]
[1751983586639,3.41290998,2584.9,2584.8,1.44095]
[1751983586844,4.18652998,2584.9,2584.8,1.44095]
[1751983587045,3.41290998,2584.9,2584.8,1.44095]
[1751983587445,1.70320998,2584.9,2584.8,1.44095]
[1751983587644,2.40230998,2584.9,2584.8,1.44095]
[1751983589052,2.40230998,2584.9,2584.8,0.77365]
[1751983589446,3.17592998,2584.9,2584.8,0.77365]
[1751983589647,0.77365,2584.8,2584.7,3.2078]
[1751983589949,3.17595998,2584.8,2584.7,3.2078]
[1751983590150,3.17595998,2584.8,2584.7,4.64878]
[1751983590450,4.18655998,2584.8,2584.7,4.64878]
[1751983590648,0.77374,2584.5,2584.4,0.77374]
[1751983590950,4.18664998,2584.5,2584.4,0.77374]
[1751983591340,3.17604998,2584.5,2584.4,1.44104]
[1751983591541,3.17604998,2584.5,2584.4,0.77374]
[1751983591941,1.70320998,2584.5,2584.4,1.44104]
[1751983592149,1.70320998,2584.5,2584.4,0.77374]
[1751983592547,1.70320998,2584.5,2584.4,1.44104]
[1751983593149,1.70320998,2584.5,2584.4,2.41144]
[1751983593551,2.40230998,2584.5,2584.4,1.44104]
[1751983594751,3.17604998,2584.5,2584.4,0.77374]
[1751983595046,3.17604998,2584.5,2584.4,1.44104]
[1751983595242,0.77377,2584.4,2584.3,1.767]
[1751983595445,3.17607998,2584.4,2584.3,3.20808]
[1751983596050,4.18667998,2584.4,2584.3,1.44108]
[1751983596249,5.95517998,2584.4,2584.3,1.44108]
[1751983596450,0.7738,2584.3,2584.2,3.2078]
[1751983596650,4.94460998,2584.3,2584.2,3.2078]
[1751983596851,5.95520998,2584.3,2584.2,3.98163]
[1751983597152,5.95520998,2584.3,2584.2,3.2078]
[1751983597547,5.95520998,2584.3,2584.2,3.98163]
[1751983597751,5.95520998,2584.3,2584.2,4.64893]
[1751983598051,5.95520998,2584.3,2584.2,3.98163]
[1751983598251,5.95520998,2584.3,2584.2,4.64893]
[1751983598653,5.95520998,2584.3,2584.2,3.98163]
[1751983598849,5.95520998,2584.3,2584.2,3.2078]
[1751983599251,0.77389,2584.0,2583.9,3.2078]
[1751983599449,0.77398,2583.7,2583.6,3.2078]
[1751983599647,0.77398,2583.7,2583.5,1.8206]
[1751983599648,0.77401,2583.6,2583.5,0.77402]
[1751983599955,1.47313,2583.6,2583.5,1.44132]
[1751983600154,1.47313,2583.6,2583.5,0.77402]
[1751983600354,1.47313,2583.6,2583.5,1.44132]
[1751983600549,1.47313,2583.6,2583.2,10.71729833]
[1751983600550,3.64474,2583.6,2583.2,8.78197833]
[1751983600755,0.77409,2583.4,2583.3,0.77407]
[1751983600951,0.6991,2583.4,2583.3,1.44137]
[1751983601153,1.7097,2583.4,2583.0,1.8206]
[1751983601459,2.50703,2583.3,2583.2,0.7741]
[1751983601659,3.20613,2583.3,2583.2,1.4414]
[1751983601853,0.6991,2583.3,2583.2,1.4414]
[1751983602158,0.77406,2583.5,2583.4,0.77404]
[1751983602355,4.29276,2583.5,2583.4,0.77404]
[1751983603154,4.29276,2583.5,2583.2,0.7741]
[1751983603155,0.77413,2583.3,2583.2,0.7741]
[1751983603355,2.48383,2583.3,2583.2,0.7741]
[1751983603855,1.7097,2583.3,2583.2,0.7741]
[1751983604056,0.6991,2583.3,2583.2,1.4414]
[1751983604451,1.4732,2583.3,2583.2,1.4414]
[1751983604655,0.6991,2583.3,2583.2,1.4414]
[1751983605656,3.2078,2583.7,2583.6,0.77401]
[1751983605851,0.77395,2583.9,2583.8,0.77393]
[1751983606054,1.47305,2583.9,2583.8,1.44123]
[1751983606456,3.4326,2583.9,2583.5,1.8444]
[1751983606653,1.7477,2583.8,2583.2,1.93533]
[1751983606856,0.77408,2583.5,2583.4,0.77405]
[1751983607062,1.47318,2583.5,2583.4,1.44135]
[1751983607854,1.47318,2583.5,2583.4,0.6673]
[1751983607855,2.48378,2583.5,2583.4,0.6673]
[1751983608052,0.7741,2583.3,2583.2,0.77411]
[1751983608258,2.49699,2583.4,2583.3,0.7741]
[1751983608454,3.19609,2583.4,2583.3,0.7741]
[1751983608658,3.19609,2583.4,2583.3,1.4414]
[1751983608859,0.77413,2583.2,2583.1,3.98194]
[1751983609058,0.77413,2583.2,2582.8,7.50979833]
[1751983609059,0.77425,2582.9,2582.8,3.2078]
[1751983609257,0.77421,2583.0,2582.9,0.77419]
[1751983609856,0.77418,2583.1,2583.0,0.77419]
[1751983610052,0.6991,2583.1,2583.0,0.77419]
[1751983610258,3.50392,2583.3,2583.2,0.77413]
[1751983610452,3.4262,2583.3,2583.2,0.77413]
[1751983610657,4.2003,2583.3,2583.2,0.77413]
[1751983610959,3.4262,2583.3,2583.2,0.77413]
[1751983611761,3.4262,2583.3,2583.1,3.2078]
[1751983611762,0.77413,2583.2,2583.1,3.2078]
[1751983611957,0.77419,2583.1,2583.0,0.77417]
[1751983612157,1.47059,2583.1,2583.0,0.77417]
[1751983612358,0.77415,2583.2,2583.1,0.77413]
[1751983612757,1.47055,2583.2,2583.1,0.77413]
[1751983612963,2.5293,2583.2,2583.1,0.77413]
[1751983613165,0.6964,2583.2,2583.1,1.45193]
[1751983613656,1.47053,2583.2,2583.1,0.77413]
[1751983613861,1.47053,2583.2,2583.1,1.45193]
[1751983614362,2.45203,2583.2,2583.1,0.77413]
[1751983615366,1.7192,2583.3,2583.2,0.77413]
[1751983615567,57.4538,2583.5,2583.3,0.77407]
[1751983615568,0.77409,2583.4,2583.3,0.77407]
[1751983615864,1.47049,2583.4,2583.3,0.77407]
[1751983616457,57.4538,2583.5,2583.4,0.77407]
[1751983616458,3.98186,2583.5,2583.4,0.77407]
[1751983616866,4.67826,2583.5,2583.4,0.77407]
[1751983617165,3.2078,2583.9,2583.4,8.78197833]
[1751983617367,1.67963457,2583.8,2583.7,6.34815833]
[1751983617670,4.73481,2584.1,2583.7,6.34815833]
[1751983617671,3.57401,2584.1,2584.0,0.77389]
[1751983617866,5.94990487,2584.1,2584.0,0.77389]
[1751983618264,0.77395,2583.8,2583.7,3.2078]
[1751983618458,0.774,2583.7,2583.6,0.77397]
[1751983618674,0.77404,2583.5,2583.4,3.98184]
[1751983618868,0.77404,2583.5,2583.4,3.8856]
[1751983619069,1.47044,2583.5,2583.4,3.8856]
[1751983619664,1.47044,2583.5,2583.4,0.6778]
[1751983619864,4.96482208,2583.5,2583.4,0.6778]
[1751983620566,0.77416,2583.1,2583.0,5.76838]
[1751983620768,0.77416,2583.1,2583.0,5.672]
[1751983620969,1.47056,2583.1,2583.0,2.4642]
[1751983621267,2.45206,2583.1,2583.0,0.6778]
[1751983621469,0.77425,2582.8,2582.7,3.2078]
[1751983621666,0.77437,2582.4,2582.3,3.2078]
[1751983621862,1.47077,2582.4,2582.3,5.6617]
[1751983622269,1.47077,2582.4,2582.3,4.9839]
[1751983622974,1.47077,2582.4,2582.3,3.2078]
[1751983623369,1.47077,2582.4,2582.3,3.8856]
[1751983623569,0.6964,2582.4,2582.3,4.66]
[1751983624268,1.47077,2582.4,2582.3,3.8856]
[1751983624671,3.35677,2582.4,2582.3,3.8856]
[1751983625269,11.36437833,2582.4,2581.4,3.2078]
[1751983625470,3.2078,2582.0,2581.3,0.22710366]
[1751983625664,57.7198,2582.0,2581.3,0.22710366]
[1751983625974,0.77467,2581.4,2581.3,0.22710366]
[1751983626177,0.77464,2581.5,2581.3,0.90490366]
[1751983626374,0.77467,2581.4,2581.3,1.67959366]
[1751983626575,0.77467,2581.4,2581.3,0.90490366]
[1751983627174,5.66037,2581.4,2581.3,0.22710366]
[1751983627370,5.66037,2581.4,2580.9,3.2078]
[1751983627371,0.77479,2581.0,2580.9,3.2078]
[1751983627566,0.77479,2581.0,2580.9,3.8856]
[1751983627768,1.93705,2580.9,2580.5,0.77494]
[1751983627979,54.56,2581.0,2580.4,1.7823]
[1751983628280,0.77491,2580.6,2580.5,1.7583]
[1751983628471,54.56,2581.0,2580.5,2.4361]
[1751983628666,0.7749,2580.7,2580.6,0.7749]
[1751983628867,0.6964,2580.7,2580.5,0.77492]
[1751983629070,0.77487,2580.8,2580.6,1.45271]
[1751983629265,1.6779,2580.7,2580.4,1.7823]
[1751983629470,1.6779,2580.7,2580.6,1.45271]
[1751983629666,0.77497,2580.4,2580.1,1.7583]
[1751983629879,0.77497,2580.4,2580.2,0.77503]
[1751983630080,0.77497,2580.4,2580.3,0.6778]
[1751983631274,0.77508,2580.1,2579.2,1.93826]
[1751983631468,0.77513,2579.9,2579.3,1.9124]
[1751983631674,54.654,2579.9,2579.8,0.77515]
[1751983631873,3.98283,2580.2,2580.0,0.77508]
[1751983632076,55.43899,2580.4,2580.2,0.77502]
[1751983632474,55.43899,2580.4,2580.3,0.775]
[1751983632475,54.664,2580.4,2580.3,0.775]
[1751983632674,3.2078,2580.5,2580.0,1.93773]
[1751983632874,3.98275,2580.5,2580.3,0.77499]
[1751983633079,3.2078,2580.5,2580.4,0.77497]
[1751983633281,0.77497,2580.4,2580.0,1.7457]
[1751983633579,0.77497,2580.4,2580.2,0.77502]
[1751983633780,0.77499,2580.4,2580.2,0.77502]
[1751983633980,5.0219,2580.5,2580.0,9.25755833]
[1751983634182,3.2078,2580.5,2580.4,0.77497]
[1751983634778,4.67914,2580.5,2580.3,0.77498]
[1751983635280,4.67914,2580.5,2580.4,1.10727]
[1751983635575,4.67914,2580.5,2580.4,0.3323]
[1751983635980,4.67914,2580.5,2580.4,1.10727]
[1751983636575,4.67914,2580.5,2580.4,0.3323]
[1751983636775,4.67914,2580.5,2580.4,1.10727]
[1751983637275,1.8649,2580.9,2580.4,0.3323]
[1751983637474,2.8464,2580.9,2580.3,5.57417833]
[1751983637675,0.77486,2580.8,2580.7,0.77488]
[1751983637879,1.47126,2580.8,2580.4,1.7284]
[1751983638280,1.47126,2580.8,2580.7,0.3323]
[1751983638577,0.6964,2580.8,2580.7,0.77488]
[1751983638773,0.6964,2580.8,2580.7,1.10718]
[1751983638971,1.75619,2581.4,2580.7,5.3323]
[1751983639176,3.2078,2581.5,2581.4,0.77467]
[1751983639481,5.57316178,2581.5,2581.4,0.77467]
[1751983639881,6.34780178,2581.5,2581.4,0.77467]
[1751983640275,6.34780178,2581.5,2581.1,1.7442]
[1751983640276,2.36536178,2581.5,2581.1,1.7442]
[1751983640580,2.44364178,2581.4,2581.3,0.7747]
[1751983640878,2.65046178,2581.4,2580.6,5.14506]
[1751983641080,0.77481,2581.0,2580.9,0.7748]
[1751983641475,1.7306,2581.3,2580.8,5.57417833]
[1751983641779,0.77474,2581.2,2581.1,0.77473]
[1751983641971,0.7747,2581.4,2581.3,0.7747]
[1751983642175,0.77466,2581.5,2581.4,0.77464]
[1751983642377,0.77467,2581.5,2581.4,0.77465]
[1751983643175,1.0016,2581.7,2581.1,9.27007833]
[1751983643377,1.77621,2581.7,2581.6,0.77461]
[1751983643578,3.98237,2581.8,2581.7,0.77458]
[1751983643773,3.2078,2581.8,2581.4,7.51081833]
[1751983643975,3.2078,2582.2,2581.7,5.57417833]
[1751983644178,0.77454,2581.9,2581.8,0.77455]
[1751983644482,0.77454,2581.9,2581.3,3.98532]
[1751983644483,0.7746,2581.7,2581.6,0.77458]
[1751983644779,0.77463,2581.6,2581.5,0.77461]
[1751983644975,2.44282077,2581.6,2581.5,0.77462]
[1751983645181,2.44307574,2581.6,2581.5,0.77462]
[1751983645382,1.66843574,2581.6,2581.5,0.77462]
[1751983645685,0.77461,2581.6,2581.5,0.77462]
[1751983645876,0.77461,2581.6,2581.3,9.35381833]
[1751983645877,1.66868819,2581.6,2581.3,7.41707833]
[1751983646078,0.77462,2581.7,2581.6,0.77459]
[1751983646272,1.66912298,2581.8,2581.7,0.77458]
[1751983646480,3.2078,2582.2,2581.7,0.8835]
[1751983646772,3.2078,2582.2,2582.1,0.77446]
[1751983646978,4.87711062,2582.2,2582.1,0.77446]
[1751983647279,4.87711062,2582.2,2581.8,4.5701]
[1751983647280,4.87711062,2582.2,2581.8,3.6866]
[1751983647478,0.77452,2581.9,2581.8,1.8243]
[1751983647682,0.77461,2581.6,2581.5,3.2078]
[1751983647885,0.7747,2581.4,2581.2,4.9531]
[1751983648086,0.7747,2581.3,2581.2,5.72781]
[1751983648378,0.7747,2581.3,2581.2,4.9531]
[1751983648582,0.77479,2581.0,2580.9,3.2078]
[1751983648778,0.77478,2581.1,2580.9,3.2078]
[1751983648979,0.77479,2581.0,2580.9,3.2078]
[1751983649680,0.77473,2581.2,2580.9,3.2078]
[1751983649881,0.77475,2581.2,2581.1,0.77476]
[1751983650081,0.77471,2581.3,2581.2,0.77472]
[1751983650280,1.0016,2581.4,2580.9,3.2078]
[1751983650481,0.77476,2581.2,2581.1,0.77473]
[1751983650883,0.77479,2581.1,2581.0,0.77477]
[1751983651084,0.77479,2581.0,2580.9,3.2078]
[1751983652587,0.77482,2580.9,2580.8,0.77483]
[1751983653989,0.77482,2581.0,2580.9,0.77479]
[1751983654185,1.0016,2581.3,2580.9,3.2078]
[1751983654380,0.77471,2581.3,2581.2,0.77468]
[1751983654583,0.77473,2581.2,2581.1,5.57417833]
[1751983654789,0.77479,2581.0,2580.9,0.77479]
[1751983655584,1.93678,2581.3,2580.8,0.77482]
[1751983655585,0.77485,2580.9,2580.8,0.77482]
[1751983655785,0.77488,2580.8,2580.7,0.77485]
[1751983655985,5.14487,2580.9,2580.4,1.8853]
[1751983656192,0.77494,2580.5,2580.4,2.66023]
[1751983657287,0.77497,2580.4,2580.3,3.2078]
[1751983657490,0.77506,2580.1,2580.0,2.55267]
[1751983657787,0.77506,2580.1,2580.0,1.7776]
[1751983658387,0.77506,2580.1,2580.0,2.55269]
[1751983658587,0.77511,2580.0,2579.9,0.77509]
[1751983659390,7.05942,2580.3,2579.7,5.8689]
[1751983659588,0.77515,2579.8,2579.7,0.77517]
[1751983659793,0.77518,2579.7,2579.6,0.77519]
[1751983660188,0.77521,2579.6,2579.5,8.473]
[1751983660383,1.7542,2579.9,2579.4,3.2078]
[1751983660384,0.77524,2579.5,2579.4,3.98304]
[1751983660587,0.77527,2579.4,2579.3,0.77527]
[1751983660791,0.77529,2579.4,2579.3,0.77529]
[1751983660994,0.77526,2579.5,2579.4,0.77526]